bitfinex/quotes_SOLUSD_20240711
["timestamp","ask_amount","ask_price","bid_price","bid_amount"]
[1720691586930,11.52,143.12,143.07,11.52]
[1720691587131,12.61463673,143.11,143.07,11.52]
[1720691587340,12.61463673,143.1,143.06,11.52]
[1720691587543,12.6149564,143.09,143.06,11.52]
[1720691587864,11.52,143.12,143.07,11.52]
[1720691588158,12.61468543,143.11,143.07,11.52]
[1720691588357,12.61468543,143.1,143.07,11.52]
[1720691588569,12.61468543,143.1,143.02,0.17]
[1720691588780,12.61468543,143.09,143.06,11.52]
[1720691588935,12.61469033,143.1,143.06,11.52]
[1720691589245,11.52,143.11,143.06,11.52]
[1720691589459,12.61468788,143.1,143.06,11.52]
[1720691589772,12.61468788,143.09,143.05,11.52]
[1720691590950,11.52,143.1,143.05,11.52]
[1720691591254,12.61550913,143.09,143.05,11.52]
[1720691591455,12.61576518,143.08,143.05,11.52]
[1720691591635,11.52,143.1,143.05,11.52]
[1720691591836,12.61597919,143.09,143.05,11.52]
[1720691592071,12.61597919,143.08,143.05,11.52]
[1720691592240,11.52,143.1,143.05,11.52]
[1720691592439,12.61596423,143.09,143.05,11.52]
[1720691592639,12.61596423,143.08,143.05,11.52]
[1720691592841,12.61596423,143.09,143.05,11.52]
[1720691593035,17.7699,143.11,143.05,11.52]
[1720691593247,12.61532602,143.1,143.06,11.52]
[1720691593448,12.61532602,143.09,143.06,11.52]
[1720691593659,17.7699,143.11,143.06,11.52]
[1720691593854,12.61478796,143.1,143.06,11.52]
[1720691594048,12.61478796,143.09,143.06,11.52]
[1720691594260,12.61478796,143.1,143.06,11.52]
[1720691594472,12.61505758,143.09,143.06,11.52]
[1720691594635,17.7699,143.11,143.06,11.52]
[1720691594835,12.61505635,143.1,143.06,11.52]
[1720691595057,12.61505635,143.09,143.06,11.52]
[1720691595254,12.61505635,143.1,143.06,11.52]
[1720691595433,12.61505635,143.09,143.06,11.52]
[1720691595638,12.61505635,143.1,143.02,0.17]
[1720691595967,12.61505635,143.1,143.05,11.52]
[1720691596547,24.13505635,143.1,143.05,11.52]
[1720691596763,12.61505635,143.09,143.05,11.52]
[1720691596970,11.52,143.08,143.03,11.52]
[1720691597165,12.61505635,143.07,143.03,11.52]
[1720691597846,12.61505635,143.07,143.04,11.52]
[1720691598147,11.52,143.09,143.04,11.52]
[1720691598358,12.61663091,143.08,143.04,11.52]
[1720691598667,12.61662969,143.07,143.04,11.52]
[1720691598964,6.2499,143.11,143.04,11.52]
[1720691599267,11.52,143.09,143.04,11.52]
[1720691599567,12.61668099,143.08,143.05,11.52]
[1720691599745,12.61668099,143.07,143.05,11.52]
[1720691599949,12.61668099,143.09,143.05,11.52]
[1720691600550,24.13668099,143.09,143.04,11.52]
[1720691600861,24.13668099,143.09,143.02,0.34]
[1720691600862,40.06998099,143.08,143.02,0.34]
[1720691601067,12.61668099,143.07,143.03,11.52]
[1720691601258,24.13668099,143.07,143.02,11.52]
[1720691601457,11.52,143.07,143.02,11.52]
[1720691601847,24.13747121,143.06,142.99,0.17]
[1720691602050,12.61747121,143.05,143.01,11.52]
[1720691602647,12.61747121,143.05,143.02,11.52]
[1720691602868,24.13747121,143.06,143.01,11.52]
[1720691603177,12.61747121,143.05,143.01,11.52]
[1720691603878,12.61747121,143.05,143.02,11.52]
[1720691604064,12.61747121,143.06,143.02,11.52]
[1720691604377,12.61891962,143.05,143.01,11.52]
[1720691604671,11.52,143.06,143.01,11.52]
[1720691604852,12.61934202,143.05,143.01,11.52]
[1720691605054,11.52,143.06,143.01,11.52]
[1720691605253,12.61934202,143.05,143.01,11.52]
[1720691605467,11.52,143.06,143.01,11.52]
[1720691605660,12.6192907,143.05,143.01,11.52]
[1720691605861,11.52,143.06,143.01,11.52]
[1720691606065,12.61929193,143.05,143.01,11.52]
[1720691606264,11.52,143.06,143.01,11.52]
[1720691606463,12.6192907,143.05,143.01,11.52]
[1720691606668,11.52,143.06,143.01,11.52]
[1720691606865,15.9333,143.08,143.02,11.52]
[1720691606866,12.6192406,143.05,143.02,11.52]
[1720691607080,11.52,143.07,143.02,11.52]
[1720691607288,12.61888437,143.06,143.02,11.52]
[1720691607472,11.52,143.07,143.02,11.52]
[1720691607673,12.61884557,143.06,143.02,11.52]
[1720691607853,11.52,143.06,142.98,0.17]
[1720691608079,24.1392135,143.05,143.0,11.52]
[1720691608277,11.52,143.05,143.0,11.52]
[1720691608580,11.52,143.07,143.02,11.52]
[1720691608775,12.61876099,143.06,143.02,11.52]
[1720691608975,11.52,143.07,143.02,11.52]
[1720691609177,12.61934779,143.06,143.02,11.52]
[1720691609369,11.52,143.07,143.02,11.52]
[1720691609570,24.13921227,143.06,143.01,11.52]
[1720691609773,11.52,143.06,143.01,11.52]
[1720691610069,11.52,143.07,143.02,11.52]
[1720691610271,12.61921472,143.06,143.02,11.52]
[1720691610571,11.52,143.07,143.02,11.52]
[1720691610768,12.61904205,143.06,143.02,11.52]
[1720691610972,11.52,143.07,143.02,11.52]
[1720691611180,12.61904083,143.06,143.02,11.52]
[1720691611365,11.52,143.07,143.02,11.52]
[1720691611561,12.61904083,143.06,143.02,11.52]
[1720691611775,11.52,143.07,143.02,11.52]
[1720691611979,12.61948208,143.06,143.02,11.52]
[1720691612181,11.52,143.07,142.98,0.17]
[1720691612362,24.13948208,143.06,143.01,11.52]
[1720691612687,11.52,143.05,143.0,11.52]
[1720691613059,11.52,143.04,142.99,11.52]
[1720691614166,11.52,143.03,142.98,11.52]
[1720691615373,6.0793,143.07,142.95,6.6204]
[1720691615374,11.52,143.04,142.99,11.52]
[1720691615893,11.52,143.04,142.96,0.17]
[1720691616187,11.52,143.04,142.99,11.52]
[1720691617765,6.0793,143.07,142.99,11.52]
[1720691617969,6.0793,143.07,143.01,11.52]
[1720691617970,11.52,143.05,143.01,11.52]
[1720691618359,11.52,143.06,143.01,11.52]
[1720691621190,27.4533,143.08,143.03,11.52]
[1720691621866,15.9333,143.08,143.03,11.52]
[1720691622062,27.4533,143.08,143.03,11.52]
[1720691623092,12.61846217,143.07,143.03,11.52]
[1720691623394,27.4533,143.08,143.03,11.52]
[1720691623572,12.61857487,143.07,143.03,11.52]
[1720691623765,11.52,143.07,143.02,11.52]
[1720691625288,12.61867723,143.06,143.02,11.52]
[1720691625500,11.52,143.07,143.02,11.52]
[1720691625680,12.61894579,143.06,143.02,11.52]
[1720691625990,11.52,143.07,143.02,11.52]
[1720691627192,12.61862714,143.06,143.02,11.52]
[1720691627371,11.52,143.07,143.02,11.52]
[1720691627674,12.61867723,143.06,143.02,11.52]
[1720691627872,11.52,143.07,143.02,11.52]
[1720691628082,12.61862714,143.06,143.02,11.52]
[1720691628292,11.52,143.07,143.02,11.52]
[1720691628483,12.61862837,143.06,143.03,11.52]
[1720691628687,27.4533,143.08,143.03,11.52]
[1720691628906,12.61825842,143.07,143.03,11.52]
[1720691629198,27.4533,143.08,143.03,11.52]
[1720691629499,12.6182059,143.07,143.03,11.52]
[1720691629709,27.4533,143.08,143.03,11.52]
[1720691629893,27.4533,143.08,143.02,11.52]
[1720691629894,24.13830608,143.07,143.02,11.52]
[1720691630077,12.61830608,143.06,143.02,11.52]
[1720691631602,12.61830608,143.06,143.03,11.52]
[1720691631769,12.61830608,143.07,143.03,11.52]
[1720691631965,12.61817346,143.06,143.03,11.52]
[1720691632166,27.4533,143.08,143.03,11.52]
[1720691632396,12.6182059,143.07,143.03,11.52]
[1720691632581,12.6182059,143.06,143.03,11.52]
[1720691632890,27.4533,143.08,143.03,11.52]
[1720691633094,12.61825599,143.07,143.03,11.52]
[1720691633297,12.61825599,143.06,143.03,11.52]
[1720691633467,27.4533,143.08,143.03,11.52]
[1720691633671,12.6182059,143.07,143.03,11.52]
[1720691633899,12.6182059,143.06,143.03,11.52]
[1720691634101,12.6182059,143.07,143.03,11.52]
[1720691634275,12.61820713,143.06,143.03,11.52]
[1720691634475,27.4533,143.08,143.03,11.52]
[1720691634689,12.61820836,143.07,143.03,11.52]
[1720691635003,12.61820836,143.06,143.03,11.52]
[1720691635199,27.4533,143.08,143.03,11.52]
[1720691635401,12.6182059,143.07,143.03,11.52]
[1720691635609,12.6182059,143.06,143.03,11.52]
[1720691635788,27.4533,143.08,143.03,11.52]
[1720691635988,12.6182059,143.07,143.03,11.52]
[1720691636302,12.6182059,143.06,143.03,11.52]
[1720691636478,12.6182059,143.07,143.03,11.52]
[1720691636798,12.6182059,143.06,143.03,11.52]
[1720691636992,15.9333,143.08,143.04,11.52]
[1720691637306,12.61776365,143.07,143.04,11.52]
[1720691637503,15.9333,143.08,143.05,11.52]
[1720691637706,12.61776488,143.07,143.05,11.52]
[1720691638006,12.61776488,143.07,143.04,11.52]
[1720691638896,12.61776488,143.07,143.0,6.5627]
[1720691638897,12.61776488,143.07,143.05,11.52]
[1720691639212,15.9333,143.08,143.05,11.52]
[1720691639409,12.61737274,143.07,143.05,11.52]
[1720691639613,15.9333,143.08,143.05,11.52]
[1720691639839,12.61698172,143.07,143.05,11.52]
[1720691639998,15.9333,143.08,143.05,11.52]
[1720691640318,12.61658806,143.07,143.05,11.52]
[1720691640624,15.6092,143.12,143.05,11.52]
[1720691640917,12.61604029,143.11,143.07,11.52]
[1720691641098,12.61604029,143.1,143.03,0.17]
[1720691641299,12.61604029,143.09,143.03,0.34]
[1720691641604,11.52,143.11,143.06,11.52]
[1720691643388,27.1292,143.12,143.07,11.52]
[1720691643810,11.52,143.11,143.06,11.52]
[1720691644204,11.52,143.09,143.03,0.17]
[1720691644397,11.52,143.09,143.04,11.52]
[1720691644719,11.52,143.09,143.0,6.3927]
[1720691644926,11.52,143.08,143.03,11.52]
[1720691645414,11.52,143.09,143.04,11.52]
[1720691646502,15.6092,143.12,143.03,11.52]
[1720691646702,11.52,143.09,143.04,11.52]
[1720691647722,11.52,143.1,143.01,11.69]
[1720691647924,11.52,143.1,143.05,11.52]
[1720691648997,15.6092,143.12,143.04,0.17]
[1720691649221,27.1292,143.12,143.07,11.52]
[1720691651919,15.6092,143.12,143.08,11.52]
[1720691652116,11.52,143.14,143.09,11.52]
[1720691652625,11.52,143.13,143.08,11.52]
[1720691653119,11.52,143.14,143.09,11.52]
[1720691654727,11.52,143.13,143.09,11.52]
[1720691655429,11.52,143.13,143.08,11.52]
[1720691656527,11.52,143.13,143.06,0.17]
[1720691656731,11.52,143.13,143.08,11.52]
[1720691658524,11.52,143.12,143.07,11.52]
[1720691659016,11.52,143.13,143.08,11.52]
[1720691663101,11.52,143.14,143.09,11.52]
[1720691663514,11.52,143.14,143.1,11.52]
[1720691666102,11.52,143.12,143.07,11.52]
[1720691666632,28.0486,143.15,143.02,6.6049]
[1720691666929,11.52,143.09,143.04,11.52]
[1720691672706,11.52,143.09,143.0,0.8535]
[1720691672916,11.52,143.08,143.03,11.52]
[1720691673104,22.1782,143.11,143.04,11.52]
[1720691673105,11.52,143.09,143.04,11.52]
[1720691673510,11.52,143.1,143.05,11.52]
[1720691676819,22.1782,143.11,143.04,11.52]
[1720691677035,11.52,143.09,143.04,11.52]
[1720691677830,11.52,143.08,143.03,11.52]
[1720691678644,11.52,143.07,142.99,6.1211]
[1720691678816,11.52,143.06,143.01,11.52]
[1720691680633,11.52,143.06,143.0,0.17]
[1720691680842,11.52,143.06,143.01,11.52]
[1720691682519,11.52,143.06,143.02,11.52]
[1720691683129,11.52,143.07,143.02,11.52]
[1720691684243,11.52,143.08,143.03,11.52]
[1720691684450,11.52,143.08,143.04,11.52]
[1720691684640,11.52,143.08,143.03,11.52]
[1720691685647,11.52,143.07,143.02,11.52]
[1720691689234,22.3621,143.06,143.0,0.17]
[1720691689437,22.3621,143.06,143.02,11.52]
[1720691689739,33.8821,143.06,143.01,11.52]
[1720691689940,33.8821,143.06,143.0,0.17]
[1720691690245,33.8821,143.06,143.01,11.52]
[1720691690442,11.52,143.05,143.0,0.17]
[1720691690760,11.52,143.05,143.0,11.69]
[1720691692428,22.3621,143.06,143.01,11.52]
[1720691692636,33.8821,143.06,143.01,11.52]
[1720691693347,22.3621,143.06,143.02,11.52]
[1720691694754,22.3621,143.06,143.03,11.52]
[1720691695635,22.3621,143.06,143.02,11.52]
[1720691697530,33.8821,143.06,143.0,0.17]
[1720691697856,22.3621,143.06,143.01,11.52]
[1720691698040,33.8821,143.06,143.01,11.52]
[1720691698839,33.8821,143.06,143.0,0.17]
[1720691699056,33.8821,143.06,143.01,11.52]
[1720691700627,22.3621,143.06,143.02,11.52]
[1720691701266,49.01064764,143.15,143.02,11.52]
[1720691701267,23.2378,143.09,143.03,11.69]
[1720691701427,23.2378,143.09,143.04,11.52]
[1720691701428,34.7578,143.09,143.04,11.52]
[1720691701949,34.7578,143.09,143.03,11.52]
[1720691701950,11.52,143.08,143.03,11.52]
[1720691702143,11.52,143.07,143.02,11.52]
[1720691702667,11.52,143.05,143.0,11.69]
[1720691703248,15.7158,143.04,142.93,0.8535]
[1720691703456,11.52,143.02,142.97,11.52]
[1720691703838,11.52,143.02,142.94,46.08]
[1720691704157,11.52,143.01,142.96,11.52]
[1720691704755,6.3432,143.03,142.98,11.52]
[1720691704961,17.8632,143.03,142.98,11.52]
[1720691707962,6.3432,143.03,142.95,0.17]
[1720691708163,6.3432,143.03,142.9,387.69720194]
[1720691708164,16.5419,143.0,142.9,387.69720194]
[1720691708367,11.52,142.99,142.94,11.52]
[1720691709363,11.52,142.98,142.9,384.9755]
[1720691709538,11.52,142.96,142.9,0.2755]
[1720691709743,11.52,142.96,142.91,11.52]
[1720691710867,11.52,142.96,142.92,11.52]
[1720691711544,11.52,142.97,142.92,11.52]
[1720691712260,11.52,142.96,142.91,11.52]
[1720691714254,11.52,142.96,142.92,11.52]
[1720691714553,11.52,142.97,142.92,11.52]
[1720691714879,6.2179,142.98,142.92,11.52]
[1720691715046,11.52,142.97,142.92,11.52]
[1720691715556,11.52,142.96,142.9,0.2755]
[1720691715758,11.52,142.96,142.91,11.52]
[1720691721853,6.2179,142.98,142.92,11.52]
[1720691722065,11.52,142.97,142.92,11.52]
[1720691722453,11.52,142.97,142.93,11.52]
[1720691722854,17.7379,142.98,142.93,11.52]
[1720691724562,17.7379,142.98,142.91,0.17]
[1720691724766,11.52,142.97,142.92,11.52]
[1720691725178,6.2179,142.98,142.93,11.52]
[1720691725480,17.7379,142.98,142.93,11.52]
[1720691726586,6.2179,142.98,142.93,11.52]
[1720691730064,17.7379,142.98,142.93,11.52]
[1720691730387,6.2179,142.98,142.95,11.52]
[1720691730565,16.5419,143.0,142.91,0.17]
[1720691730766,16.5419,143.0,142.97,11.52]
[1720691730962,16.5419,143.0,142.98,11.52]
[1720691731461,16.5419,143.0,142.97,11.52]
[1720691731783,16.5419,143.0,142.96,11.52]
[1720691731992,28.0619,143.0,142.95,11.52]
[1720691734401,16.5419,143.0,142.94,11.52]
[1720691734564,16.5419,143.0,142.97,11.52]
[1720691734899,16.5419,143.0,142.98,11.52]
[1720691735681,28.0619,143.0,142.95,11.52]
[1720691737688,16.5419,143.0,142.96,11.52]
[1720691738577,15.4488,143.03,142.97,11.69]
[1720691738776,15.4488,143.03,143.0,11.52]
[1720691738979,15.4488,143.03,143.01,11.52]
[1720691739174,21.5979,143.12,143.02,11.52]
[1720691739394,21.5979,143.12,142.96,0.17]
[1720691739395,11.52,143.08,143.03,11.52]
[1720691740495,11.52,143.09,143.04,11.52]
[1720691740789,11.52,143.08,143.03,11.52]
[1720691742690,15.4488,143.11,143.01,11.52]
[1720691742991,15.4488,143.11,143.06,11.52]
[1720691743185,26.9688,143.11,143.06,11.52]
[1720691743667,11.52,143.1,143.05,11.52]
[1720691744587,11.52,143.09,143.02,30.34]
[1720691744789,11.52,143.09,143.04,11.52]
[1720691744985,15.4488,143.11,143.05,11.52]
[1720691745182,11.52,143.1,143.05,11.52]
[1720691745495,11.52,143.09,143.04,11.52]
[1720691748098,11.52,143.1,143.05,11.52]
[1720691748564,15.4488,143.11,143.02,0.34]
[1720691748768,26.9688,143.11,143.06,11.52]
[1720691750393,15.4488,143.11,143.06,11.52]
[1720691750597,26.9688,143.11,143.06,11.52]
[1720691752886,26.9688,143.11,143.02,30.34]
[1720691753093,11.52,143.1,143.02,30.34]
[1720691753294,11.52,143.09,143.04,11.52]
[1720691755174,11.52,143.09,143.05,11.52]
[1720691755392,11.52,143.1,143.05,11.52]
[1720691756380,11.52,143.09,143.05,11.52]
[1720691756577,11.52,143.09,143.04,11.52]
[1720691758778,11.52,143.1,143.05,11.52]
[1720691760599,11.52,143.1,143.02,30.34]
[1720691760600,11.52,143.07,143.02,41.52]
[1720691760779,11.52,143.07,143.02,11.52]
[1720691761498,0.17,143.09,143.03,11.52]
[1720691761711,0.17,143.1,143.06,11.52]
[1720691761870,15.4488,143.11,143.06,11.52]
[1720691762072,15.4488,143.11,143.07,11.52]
[1720691762802,15.4488,143.11,143.04,30.0]
[1720691763000,11.52,143.1,143.05,11.52]
[1720691763187,11.52,143.09,143.04,41.52]
[1720691763389,11.52,143.09,143.04,11.52]
[1720691764491,11.52,143.1,143.05,11.52]
[1720691764806,11.52,143.1,143.06,11.52]
[1720691764981,11.52,143.1,143.05,11.52]
[1720691765600,11.52,143.1,143.02,0.17]
[1720691765601,11.52,143.09,143.04,11.52]
[1720691766682,11.52,143.08,143.03,11.52]
[1720691766893,11.52,143.07,143.02,11.52]
[1720691768005,26.936,143.06,142.98,30.0]
[1720691768206,26.936,143.06,143.01,11.52]
[1720691769508,15.416,143.06,143.02,11.52]
[1720691773109,15.416,143.06,142.98,0.17]
[1720691773410,15.416,143.06,142.94,0.8535]
[1720691773591,11.52,143.02,142.97,11.52]
[1720691774713,16.5958,143.01,142.92,2.81509078]
[1720691774931,28.1158,143.01,142.96,11.52]
[1720691775978,16.5958,143.01,142.97,11.52]
[1720691776413,11.52,143.0,142.9,0.2755]
[1720691776590,11.52,142.99,142.94,11.52]
[1720691777389,11.52,142.98,142.93,11.52]
[1720691777590,11.52,142.97,142.9,0.2755]
[1720691777805,0.17,143.0,142.92,11.52]
[1720691778120,11.52,142.99,142.94,11.52]
[1720691780592,11.52,143.0,142.95,11.52]
[1720691781422,11.52,142.99,142.94,11.52]
[1720691781795,16.5958,143.01,142.95,11.52]
[1720691782103,11.52,143.0,142.95,11.52]
[1720691782622,11.52,143.0,142.96,11.52]
[1720691783486,16.5958,143.01,142.96,11.52]
[1720691783487,28.1158,143.01,142.96,11.52]
[1720691785000,16.5958,143.01,142.97,11.52]
[1720691785206,16.5958,143.01,142.99,11.52]
[1720691785622,16.5958,143.01,143.0,11.52]
[1720691785918,16.5958,143.01,142.93,0.8535]
[1720691786298,16.5958,143.01,142.98,11.52]
[1720691787018,16.5958,143.01,142.92,6.678]
[1720691787236,28.1158,143.01,142.96,11.52]
[1720691787721,28.1158,143.01,142.92,6.678]
[1720691787722,16.5958,143.01,142.97,11.52]
[1720691788102,16.5958,143.01,142.98,11.52]
[1720691788296,16.5958,143.01,142.99,11.52]
[1720691789899,16.5958,143.01,143.0,11.52]
[1720691790218,15.8948,143.04,143.0,11.52]
[1720691791597,15.8948,143.04,143.01,11.52]
[1720691791799,15.8948,143.04,143.02,11.52]
[1720691792023,15.6194,143.07,143.03,11.52]
[1720691793704,15.6194,143.07,143.04,11.52]
[1720691794312,15.4039,143.1,143.02,0.17]
[1720691794627,15.4039,143.1,143.06,11.52]
[1720691794999,15.4039,143.1,143.07,11.52]
[1720691795442,15.4039,143.1,143.06,11.52]
[1720691799138,26.9239,143.1,143.06,11.52]
[1720691802211,15.4039,143.1,143.06,11.52]
[1720691804010,26.9239,143.1,143.05,11.52]
[1720691805746,15.4039,143.1,143.06,11.52]
[1720691809938,15.4039,143.1,143.02,0.34]
[1720691809939,26.9239,143.1,143.02,0.34]
[1720691810120,26.9239,143.1,143.05,11.52]
[1720691812841,11.52,143.09,143.02,0.17]
[1720691813153,26.9239,143.1,143.02,0.17]
[1720691813331,26.9239,143.1,143.05,11.52]
[1720691813530,11.52,143.09,143.04,11.52]
[1720691815537,15.4039,143.1,142.99,0.17]
[1720691815713,15.4039,143.1,143.02,11.52]
[1720691815714,11.52,143.07,143.02,11.52]
[1720691816337,11.52,143.07,142.99,0.34]
[1720691816338,18.1295,143.06,142.96,259.2370652]
[1720691816536,16.4421,143.05,143.01,11.52]
[1720691816917,16.4421,143.05,143.02,11.52]
[1720691818037,16.4421,143.05,143.03,11.52]
[1720691819517,16.4421,143.05,143.02,11.52]
[1720691819722,16.4421,143.05,142.98,0.17]
[1720691819985,27.9621,143.05,142.98,0.17]
[1720691820248,16.4421,143.05,143.01,11.52]
[1720691820726,16.4421,143.05,143.02,11.52]
[1720691821120,16.4421,143.05,143.01,11.52]
[1720691822434,16.4421,143.05,142.92,6.88]
[1720691822638,11.52,143.03,142.98,11.52]
[1720691823026,11.52,143.02,142.97,11.52]
[1720691823223,34.2111,143.01,142.94,30.0]
[1720691823553,16.4611,142.97,142.9,0.2755]
[1720691823730,27.9811,142.97,142.9,0.2755]
[1720691823937,16.4611,142.97,142.93,11.52]
[1720691824123,16.4611,142.97,142.95,11.52]
[1720691824525,16.4611,142.97,142.96,11.52]
[1720691825349,16.4611,142.97,142.94,11.52]
[1720691825546,16.4611,142.97,142.9,0.2755]
[1720691826052,16.4611,142.97,142.93,11.52]
[1720691826263,27.9811,142.97,142.92,11.52]
[1720691826639,16.4611,142.97,142.93,11.52]
[1720691826838,16.4611,142.97,142.95,11.52]
[1720691827036,16.4611,142.97,142.96,11.52]
[1720691828160,16.4611,142.97,142.91,0.17]
[1720691828354,16.4611,142.97,142.95,11.52]
[1720691828558,16.4611,142.97,142.9,0.2755]
[1720691828758,16.4611,142.97,142.94,11.52]
[1720691828958,16.4611,142.97,142.9,0.2755]
[1720691829154,6.3647,142.96,142.9,0.2755]
[1720691829463,6.3647,142.96,142.92,11.52]
[1720691830265,6.3647,142.96,142.93,11.52]
[1720691830570,6.3647,142.96,142.94,11.52]
[1720691830759,16.4611,142.97,142.95,11.52]
[1720691830971,16.4611,142.97,142.96,11.52]
[1720691831352,16.4611,142.97,142.95,11.52]
[1720691831551,16.4611,142.97,142.94,11.52]
[1720691832168,16.4611,142.97,142.9,0.2755]
[1720691832368,16.4611,142.97,142.94,11.52]
[1720691832975,16.4611,142.97,142.95,11.52]
[1720691833551,16.4611,142.97,142.96,11.52]
[1720691834569,16.4611,142.97,142.95,11.52]
[1720691835672,16.4611,142.97,142.96,11.52]
[1720691836673,16.4611,142.97,142.95,11.52]
[1720691836876,16.4611,142.97,142.91,0.17]
[1720691837053,16.4611,142.97,142.95,11.52]
[1720691838664,16.4611,142.97,142.94,11.52]
[1720691840151,16.4611,142.97,142.9,0.2755]
[1720691840357,16.4611,142.97,142.94,11.52]
[1720691841370,16.4611,142.97,142.95,11.52]
[1720691841581,16.4611,142.97,142.96,11.52]
[1720691842071,16.4611,142.97,142.91,0.17]
[1720691842267,16.4611,142.97,142.95,11.52]
[1720691844760,16.4611,142.97,142.91,0.34]
[1720691844967,16.4611,142.97,142.94,11.52]
[1720691845368,16.4611,142.97,142.9,0.2755]
[1720691845574,16.4611,142.97,142.94,11.52]
[1720691849794,16.4611,142.97,142.9,0.2755]
[1720691850099,16.4611,142.97,142.94,11.52]
[1720691852189,16.4611,142.97,142.9,0.2755]
[1720691852392,27.9811,142.97,142.92,11.52]
[1720691852597,17.6607,142.96,142.9,0.2755]
[1720691852897,17.6607,142.96,142.91,11.52]
[1720691853097,17.6607,142.96,142.92,11.52]
[1720691853291,6.1407,142.96,142.93,11.52]
[1720691854999,6.1407,142.96,142.94,11.52]
[1720691855305,6.1407,142.96,142.95,11.52]
[1720691855487,16.4611,142.97,142.95,11.52]
[1720691855691,16.4611,142.97,142.91,0.17]
[1720691855692,16.4611,142.97,142.96,11.52]
[1720691855889,16.4611,142.97,142.95,11.52]
[1720691856600,16.4611,142.97,142.94,11.52]
[1720691859492,16.4611,142.97,142.96,11.52]
[1720691860301,22.5952,143.0,142.96,11.52]
[1720691860600,22.5952,143.0,142.98,11.52]
[1720691861178,22.5952,143.0,142.97,11.52]
[1720691863599,22.5952,143.0,142.98,11.52]
[1720691863987,22.5952,143.0,142.95,0.17]
[1720691864294,16.5028,143.0,142.99,11.52]
[1720691865990,22.6235,143.03,142.99,11.52]
[1720691866296,22.6235,143.03,142.95,0.34]
[1720691866496,22.6235,143.03,143.02,11.52]
[1720691866714,35.24434749,143.03,143.02,11.52]
[1720691867191,35.24434749,143.03,143.01,11.52]
[1720691867390,22.6235,143.03,143.01,11.52]
[1720691869207,22.6235,143.03,143.0,11.52]
[1720691869578,22.6235,143.03,143.02,11.52]
[1720691869809,35.24388076,143.03,143.02,11.52]
[1720691870897,29.12018076,143.03,143.02,11.52]
[1720691871081,16.4998,143.03,143.02,11.52]
[1720691871605,21.9394,143.06,143.02,11.52]
[1720691871804,21.9394,143.06,143.05,11.52]